[Event "Early-Titled-Tuesday-Blitz-December-26-2023"]
[Site "Chess.com"]
[Date "2023.12.26"]
[Round "8"]
[White "Statham_l3"]
[Black "Aradhya2000"]
[Result "0-1"]
[WhiteElo "2572"]
[BlackElo "2721"]
[TimeControl "180+1"]
[EndTime "9:27:41 PST"]
[Termination "Aradhya2000 won by resignation"]

1. e4 {[%clk 0:03:00.9]} 1... e5 {[%clk 0:03:00.1]} 2. Nf3 {[%clk 0:03:00.9]}
2... Nc6 {[%clk 0:03:00.2]} 3. Nc3 {[%clk 0:03:00.6]} 3... Nf6 {[%clk
0:02:58.8]} 4. Be2 {[%clk 0:03:01.2]} 4... d5 {[%clk 0:02:52.6]} 5. exd5 {[%clk
0:03:00.2]} 5... Nxd5 {[%clk 0:02:53.5]} 6. O-O {[%clk 0:02:59.7]} 6... Nxc3
{[%clk 0:02:52.3]} 7. bxc3 {[%clk 0:03:00.6]} 7... Bd6 {[%clk 0:02:52.1]} 8. d4
{[%clk 0:03:00.7]} 8... O-O {[%clk 0:02:51.1]} 9. Bg5 {[%clk 0:02:56.9]} 9... f6
{[%clk 0:02:47.8]} 10. Bh4 {[%clk 0:02:53.3]} 10... Bf5 {[%clk 0:02:42.4]} 11.
Rb1 {[%clk 0:02:37.7]} 11... b6 {[%clk 0:02:41.3]} 12. Bb5 {[%clk 0:02:30.9]}
12... Bd7 {[%clk 0:02:40.8]} 13. dxe5 {[%clk 0:02:12]} 13... Nxe5 {[%clk
0:02:39.2]} 14. Nxe5 {[%clk 0:02:04.8]} 14... Bxb5 {[%clk 0:02:38.7]} 15. Qd5+
{[%clk 0:01:48.2]} 15... Kh8 {[%clk 0:02:38.9]} 16. Rxb5 {[%clk 0:01:25.3]}
16... Bxe5 {[%clk 0:02:37.4]} 17. Qxe5 {[%clk 0:01:17.7]} 17... c6 {[%clk
0:02:36.9]} 18. Rbb1 {[%clk 0:00:51]} 18... fxe5 {[%clk 0:02:36.7]} 19. Bxd8
{[%clk 0:00:51.9]} 19... Raxd8 {[%clk 0:02:36.9]} 20. Rbd1 {[%clk 0:00:52.6]}
20... Kg8 {[%clk 0:02:36.5]} 21. f3 {[%clk 0:00:51.2]} 21... Kf7 {[%clk
0:02:36.4]} 22. Kf2 {[%clk 0:00:50.7]} 22... Ke6 {[%clk 0:02:35.1]} 23. Ke3
{[%clk 0:00:50.2]} 23... Rd5 {[%clk 0:02:35.1]} 24. Rd3 {[%clk 0:00:46.6]} 24...
Rf4 {[%clk 0:02:30.2]} 25. Rb1 {[%clk 0:00:27.7]} 25... Ra4 {[%clk 0:02:29.8]}
26. Rb2 {[%clk 0:00:22.4]} 26... g5 {[%clk 0:02:29]} 27. h3 {[%clk 0:00:20.4]}
27... h5 {[%clk 0:02:28.7]} 28. g3 {[%clk 0:00:15.9]} 28... Kd6 {[%clk
0:02:26.7]} 29. g4 {[%clk 0:00:05.5]} 29... h4 {[%clk 0:02:26.4]} 30. Ke2 {[%clk
0:00:03.9]} 30... Kc5 {[%clk 0:02:25.2]} 31. Ke3 {[%clk 0:00:04.2]} 31... Ra3
{[%clk 0:02:19.9]} 32. Kd2 {[%clk 0:00:03]} 32... b5 {[%clk 0:02:16.8]} 33. Ke2
{[%clk 0:00:02.1]} 33... a5 {[%clk 0:02:14]} 34. Kd2 {[%clk 0:00:02.4]} 34...
Kc4 {[%clk 0:02:12.8]} 35. Ke2 {[%clk 0:00:01.7]} 35... Rxc3 {[%clk 0:02:12.4]}
36. Rb3 {[%clk 0:00:01.8]} 36... Rxc2+ {[%clk 0:02:12.2]} 37. Ke3 {[%clk
0:00:02]} 37... Rxd3+ {[%clk 0:02:01.5]} 38. Rxd3 {[%clk 0:00:02.9]} 38... Rc3
{[%clk 0:02:02]} 39. Rxc3+ {[%clk 0:00:03.6]} 39... Kxc3 {[%clk 0:02:02.9]} 40.
Ke4 {[%clk 0:00:03.9]} 40... b4 {[%clk 0:02:03.4]} 41. Kxe5 {[%clk 0:00:04.6]}
41... a4 {[%clk 0:02:04]} 42. f4 {[%clk 0:00:05.3]} 42... gxf4 {[%clk
0:02:02.9]} 43. g5 {[%clk 0:00:05.6]} 43... f3 {[%clk 0:02:03]} 44. g6 {[%clk
0:00:05.6]} 44... f2 {[%clk 0:02:03.5]} 45. g7 {[%clk 0:00:06.2]} 45... f1=Q
{[%clk 0:02:03.8]} 46. g8=Q {[%clk 0:00:06.9]} 46... Qe1+ {[%clk 0:02:02]} 47.
Kd6 {[%clk 0:00:07.1]} 47... Qg3+ {[%clk 0:02:02]} 48. Qxg3+ {[%clk 0:00:06]}
48... hxg3 {[%clk 0:02:02.9]} 49. h4 {[%clk 0:00:06.4]} 49... g2 {[%clk
0:02:03.3]} 0-1

[Event "Early-Titled-Tuesday-Blitz-December-26-2023"]
[Site "Chess.com"]
[Date "2023.12.26"]
[Round "8"]
[White "sokidze"]
[Black "Suleyman_Chess06"]
[Result "0-1"]
[WhiteElo "2763"]
[BlackElo "2633"]
[TimeControl "180+1"]
[EndTime "9:27:44 PST"]
[Termination "Suleyman_Chess06 won by resignation"]

1. d4 {[%clk 0:03:00.9]} 1... d5 {[%clk 0:02:56.9]} 2. c4 {[%clk 0:03:01.3]}
2... c6 {[%clk 0:02:57.4]} 3. Nf3 {[%clk 0:02:59.8]} 3... Nf6 {[%clk 0:02:57.6]}
4. e3 {[%clk 0:03:00.4]} 4... Bf5 {[%clk 0:02:57.6]} 5. Nc3 {[%clk 0:03:00.5]}
5... e6 {[%clk 0:02:57.7]} 6. Nh4 {[%clk 0:03:01]} 6... Be4 {[%clk 0:02:56.9]}
7. f3 {[%clk 0:03:01.1]} 7... Bg6 {[%clk 0:02:57.2]} 8. Bd2 {[%clk 0:03:01.5]}
8... Bd6 {[%clk 0:02:55.6]} 9. Qb3 {[%clk 0:02:52.6]} 9... Qc7 {[%clk 0:02:50]}
10. cxd5 {[%clk 0:02:19.2]} 10... exd5 {[%clk 0:02:48.5]} 11. Nxg6 {[%clk
0:02:12.5]} 11... hxg6 {[%clk 0:02:48.4]} 12. O-O-O {[%clk 0:02:11.9]} 12...
Nbd7 {[%clk 0:02:46.9]} 13. e4 {[%clk 0:02:06.5]} 13... Bf4 {[%clk 0:02:44.2]}
14. e5 {[%clk 0:01:59.2]} 14... Bxd2+ {[%clk 0:02:44.1]} 15. Rxd2 {[%clk
0:01:59]} 15... Ng8 {[%clk 0:02:44]} 16. f4 {[%clk 0:01:54.4]} 16... Ne7 {[%clk
0:02:43.9]} 17. Bd3 {[%clk 0:01:51.7]} 17... Nf8 {[%clk 0:02:43.7]} 18. Rc2
{[%clk 0:01:48.8]} 18... Ne6 {[%clk 0:02:42.2]} 19. Nb5 {[%clk 0:01:47]} 19...
Qb6 {[%clk 0:02:38.8]} 20. Nd6+ {[%clk 0:01:37.6]} 20... Kf8 {[%clk 0:02:38.6]}
21. Qxb6 {[%clk 0:01:15.1]} 21... axb6 {[%clk 0:02:38.3]} 22. Kb1 {[%clk
0:01:15.8]} 22... Nxd4 {[%clk 0:02:37.6]} 23. Rf2 {[%clk 0:01:13.7]} 23... Nef5
{[%clk 0:02:33.2]} 24. Nxb7 {[%clk 0:01:06.2]} 24... Rb8 {[%clk 0:02:19.1]} 25.
Ba6 {[%clk 0:01:06.1]} 25... Ra8 {[%clk 0:02:18.8]} 26. Bd3 {[%clk 0:01:05.1]}
26... Ra7 {[%clk 0:02:15.1]} 27. Bxf5 {[%clk 0:00:45]} 27... Nxf5 {[%clk
0:02:15.5]} 28. Nd8 {[%clk 0:00:45.5]} 28... Rc7 {[%clk 0:02:11]} 29. e6 {[%clk
0:00:43]} 29... f6 {[%clk 0:02:05.6]} 30. Rc1 {[%clk 0:00:21]} 30... c5 {[%clk
0:02:03.1]} 31. g4 {[%clk 0:00:13.2]} 31... Nd6 {[%clk 0:02:00.8]} 32. f5 {[%clk
0:00:11.5]} 32... g5 {[%clk 0:02:00.5]} 33. Rd2 {[%clk 0:00:08.3]} 33... Ke7
{[%clk 0:01:59.2]} 34. Nf7 {[%clk 0:00:06.8]} 34... Nxf7 {[%clk 0:01:59.1]} 35.
exf7 {[%clk 0:00:07.3]} 35... Rd8 {[%clk 0:01:59.4]} 36. Re1+ {[%clk 0:00:04.5]}
36... Kxf7 {[%clk 0:01:59.8]} 37. Re6 {[%clk 0:00:04.9]} 37... b5 {[%clk
0:01:59.9]} 38. Kc2 {[%clk 0:00:03.3]} 38... d4 {[%clk 0:02:00.1]} 39. a3 {[%clk
0:00:02]} 39... c4 {[%clk 0:02:00]} 40. Rb6 {[%clk 0:00:02.2]} 40... Rd5 {[%clk
0:01:59.5]} 41. Kc1 {[%clk 0:00:01.8]} 41... d3 {[%clk 0:01:58.8]} 42. Re6
{[%clk 0:00:01.8]} 42... Re7 {[%clk 0:01:58.6]} 43. Rxe7+ {[%clk 0:00:01.9]}
43... Kxe7 {[%clk 0:01:59.5]} 44. Kd1 {[%clk 0:00:02.2]} 44... Kd6 {[%clk
0:01:59.5]} 45. Ke1 {[%clk 0:00:02.4]} 45... Kc5 {[%clk 0:01:59.7]} 46. Kf2
{[%clk 0:00:02.7]} 46... Kd4 {[%clk 0:02:00.4]} 47. Kf3 {[%clk 0:00:03.1]} 47...
Re5 {[%clk 0:02:00.7]} 48. Kf2 {[%clk 0:00:03.6]} 48... c3 {[%clk 0:02:00.5]}
49. bxc3+ {[%clk 0:00:03.4]} 49... Kxc3 {[%clk 0:02:01.4]} 0-1

[Event "Early-Titled-Tuesday-Blitz-December-26-2023"]
[Site "Chess.com"]
[Date "2023.12.26"]
[Round "8"]
[White "secrethawk1"]
[Black "Ajedrez_con_German"]
[Result "1/2-1/2"]
[WhiteElo "2468"]
[BlackElo "2598"]
[TimeControl "180+1"]
[EndTime "9:27:46 PST"]
[Termination "Game drawn by repetition"]

1. e4 {[%clk 0:03:00.9]} 1... c5 {[%clk 0:02:54.2]} 2. Nf3 {[%clk 0:02:56]} 2...
a6 {[%clk 0:02:53.6]} 3. c4 {[%clk 0:02:45.8]} 3... Nc6 {[%clk 0:02:51.5]} 4. d4
{[%clk 0:02:38.7]} 4... cxd4 {[%clk 0:02:52.4]} 5. Nxd4 {[%clk 0:02:39.4]} 5...
e5 {[%clk 0:02:52.7]} 6. Nf5 {[%clk 0:02:37]} 6... d5 {[%clk 0:02:52.6]} 7. cxd5
{[%clk 0:02:31.6]} 7... Bxf5 {[%clk 0:02:50.1]} 8. exf5 {[%clk 0:02:32.5]} 8...
Nd4 {[%clk 0:02:49.2]} 9. Bd3 {[%clk 0:02:29.3]} 9... Qxd5 {[%clk 0:02:31.9]}
10. O-O {[%clk 0:02:26.6]} 10... Nf6 {[%clk 0:02:28.3]} 11. Nc3 {[%clk 0:02:22]}
11... Qd7 {[%clk 0:02:25.2]} 12. Be3 {[%clk 0:02:18.2]} 12... Be7 {[%clk
0:02:20.1]} 13. Rc1 {[%clk 0:02:07.1]} 13... O-O {[%clk 0:02:12.9]} 14. Bb1
{[%clk 0:01:55.8]} 14... Rfd8 {[%clk 0:02:09.3]} 15. Ne2 {[%clk 0:01:44.7]}
15... h6 {[%clk 0:01:29.9]} 16. Nxd4 {[%clk 0:01:41.7]} 16... exd4 {[%clk
0:01:29.7]} 17. Bf4 {[%clk 0:01:41.1]} 17... Rac8 {[%clk 0:01:20.8]} 18. Re1
{[%clk 0:01:39.3]} 18... Bd6 {[%clk 0:01:17.1]} 19. Rxc8 {[%clk 0:01:27.3]}
19... Qxc8 {[%clk 0:01:09.3]} 20. Qxd4 {[%clk 0:01:22]} 20... Bxf4 {[%clk
0:01:01.8]} 21. Qxf4 {[%clk 0:01:18.4]} 21... Qc5 {[%clk 0:01:01.5]} 22. h3
{[%clk 0:01:08]} 22... Qa5 {[%clk 0:00:56.6]} 23. Qc1 {[%clk 0:01:00.2]} 23...
Qd2 {[%clk 0:00:53.8]} 24. b3 {[%clk 0:00:49.9]} 24... Kf8 {[%clk 0:00:50.4]}
25. Qc5+ {[%clk 0:00:48.5]} 25... Qd6 {[%clk 0:00:49.7]} 26. Qc3 {[%clk
0:00:42.1]} 26... Qd2 {[%clk 0:00:49]} 27. Qc5+ {[%clk 0:00:41.2]} 27... Qd6
{[%clk 0:00:49.1]} 28. Qa7 {[%clk 0:00:38.7]} 28... Qd2 {[%clk 0:00:42.1]} 29.
Qc5+ {[%clk 0:00:27.3]} 1/2-1/2

[Event "Early-Titled-Tuesday-Blitz-December-26-2023"]
[Site "Chess.com"]
[Date "2023.12.26"]
[Round "8"]
[White "Ramla2020"]
[Black "RebecaJimnz"]
[Result "1-0"]
[WhiteElo "2461"]
[BlackElo "2266"]
[TimeControl "180+1"]
[EndTime "9:27:49 PST"]
[Termination "Ramla2020 won by resignation"]

1. c4 {[%clk 0:03:00.2]} 1... e5 {[%clk 0:02:58.8]} 2. g3 {[%clk 0:03:00.1]}
2... Nc6 {[%clk 0:02:59]} 3. Bg2 {[%clk 0:03:00.3]} 3... g6 {[%clk 0:02:59.7]}
4. e3 {[%clk 0:02:59.8]} 4... Bg7 {[%clk 0:03:00.3]} 5. Ne2 {[%clk 0:02:59.6]}
5... Nge7 {[%clk 0:03:00.8]} 6. Nbc3 {[%clk 0:02:59.3]} 6... O-O {[%clk
0:02:59.5]} 7. d4 {[%clk 0:02:59.5]} 7... exd4 {[%clk 0:02:59.3]} 8. exd4 {[%clk
0:03:00.4]} 8... Re8 {[%clk 0:02:39.4]} 9. O-O {[%clk 0:02:59.9]} 9... d6 {[%clk
0:02:39]} 10. h3 {[%clk 0:02:59.5]} 10... Bf5 {[%clk 0:02:37.8]} 11. g4 {[%clk
0:02:58.9]} 11... Bd7 {[%clk 0:02:37.1]} 12. Be3 {[%clk 0:02:58.4]} 12... Qc8
{[%clk 0:02:34.8]} 13. Qd2 {[%clk 0:02:56.6]} 13... h5 {[%clk 0:02:07.2]} 14. f3
{[%clk 0:02:52.8]} 14... hxg4 {[%clk 0:02:05.6]} 15. fxg4 {[%clk 0:02:53.1]}
15... Bxg4 {[%clk 0:02:05.7]} 16. hxg4 {[%clk 0:02:45.2]} 16... Qxg4 {[%clk
0:02:06.4]} 17. Rf4 {[%clk 0:02:43.6]} 17... Qd7 {[%clk 0:01:49.6]} 18. Raf1
{[%clk 0:02:38.5]} 18... Nf5 {[%clk 0:01:49.3]} 19. Rxf5 {[%clk 0:02:29.5]}
19... gxf5 {[%clk 0:01:48.7]} 20. Bh3 {[%clk 0:02:29.7]} 20... Qe6 {[%clk
0:01:39.5]} 21. Bf2 {[%clk 0:02:24.8]} 21... Qg6+ {[%clk 0:01:31.4]} 22. Kh2
{[%clk 0:02:17.3]} 22... Re6 {[%clk 0:01:26.7]} 23. Nf4 {[%clk 0:02:04.6]} 23...
Qh6 {[%clk 0:01:26.7]} 24. d5 {[%clk 0:01:57.1]} 24... Rg6 {[%clk 0:01:08.3]}
25. dxc6 {[%clk 0:01:52.6]} 25... Be5 {[%clk 0:01:08.7]} 26. Bg3 {[%clk
0:01:52.4]} 26... Rg7 {[%clk 0:01:03.7]} 27. Ncd5 {[%clk 0:01:44.5]} 27... Rh7
{[%clk 0:01:00.3]} 28. Qg2 {[%clk 0:01:40.9]} 28... Kf8 {[%clk 0:00:52.2]} 29.
cxb7 {[%clk 0:01:28.1]} 29... Rb8 {[%clk 0:00:51.3]} 30. Ne3 {[%clk 0:01:21]}
30... Rxb7 {[%clk 0:00:25]} 31. Nxf5 {[%clk 0:01:20.6]} 31... Qxh3+ {[%clk
0:00:17.9]} 32. Nxh3 {[%clk 0:01:19.2]} 32... Rxb2 {[%clk 0:00:18.4]} 33. Qxb2
{[%clk 0:01:08.4]} 33... Bxb2 {[%clk 0:00:18.2]} 34. Rb1 {[%clk 0:01:08.8]} 1-0

[Event "Early-Titled-Tuesday-Blitz-December-26-2023"]
[Site "Chess.com"]
[Date "2023.12.26"]
[Round "8"]
[White "aksuliini1"]
[Black "tylityli"]
[Result "1-0"]
[WhiteElo "2462"]
[BlackElo "2246"]
[TimeControl "180+1"]
[EndTime "9:27:50 PST"]
[Termination "aksuliini1 won on time"]

1. Nf3 {[%clk 0:03:00]} 1... Nf6 {[%clk 0:02:59.2]} 2. b3 {[%clk 0:02:59.8]}
2... g6 {[%clk 0:02:57.8]} 3. Bb2 {[%clk 0:02:59]} 3... Bg7 {[%clk 0:02:58.7]}
4. e3 {[%clk 0:02:58]} 4... O-O {[%clk 0:02:58.7]} 5. d4 {[%clk 0:02:58.5]} 5...
a5 {[%clk 0:02:58]} 6. a3 {[%clk 0:02:54.3]} 6... b6 {[%clk 0:02:51.6]} 7. Bd3
{[%clk 0:02:51]} 7... Bb7 {[%clk 0:02:51.2]} 8. O-O {[%clk 0:02:47.7]} 8... Ne4
{[%clk 0:02:37.7]} 9. c4 {[%clk 0:02:45.7]} 9... f5 {[%clk 0:02:36.4]} 10. Qc2
{[%clk 0:02:42.7]} 10... d6 {[%clk 0:02:32.3]} 11. d5 {[%clk 0:02:31.6]} 11...
Nc5 {[%clk 0:02:29.5]} 12. Bxg7 {[%clk 0:02:27]} 12... Kxg7 {[%clk 0:02:29.6]}
13. Qc3+ {[%clk 0:02:24.7]} 13... e5 {[%clk 0:02:17.7]} 14. dxe6+ {[%clk
0:02:14.8]} 14... Qf6 {[%clk 0:02:13.9]} 15. Bc2 {[%clk 0:01:56.2]} 15... Nxe6
{[%clk 0:02:00.6]} 16. Qxf6+ {[%clk 0:01:52.3]} 16... Kxf6 {[%clk 0:01:59.4]}
17. Nc3 {[%clk 0:01:53.2]} 17... c6 {[%clk 0:01:11.9]} 18. Rfd1 {[%clk
0:01:43.9]} 18... Ke7 {[%clk 0:01:09.5]} 19. e4 {[%clk 0:01:43.1]} 19... Nd7
{[%clk 0:00:58.2]} 20. exf5 {[%clk 0:01:40]} 20... gxf5 {[%clk 0:00:58.9]} 21.
Re1 {[%clk 0:01:39.5]} 21... Kf6 {[%clk 0:00:50.5]} 22. Rad1 {[%clk 0:01:39.3]}
22... Ne5 {[%clk 0:00:28.4]} 23. Nxe5 {[%clk 0:01:38.9]} 23... dxe5 {[%clk
0:00:27.5]} 24. Rd7 {[%clk 0:01:39.5]} 24... Bc8 {[%clk 0:00:12.6]} 25. Rxh7
{[%clk 0:01:36]} 25... Kg6 {[%clk 0:00:07.4]} 26. Rh3 {[%clk 0:01:28.3]} 26...
e4 {[%clk 0:00:07.2]} 27. Rd1 {[%clk 0:01:22]} 27... Ba6 {[%clk 0:00:04.1]} 28.
Rd6 {[%clk 0:01:18.9]} 28... Rf6 {[%clk 0:00:03.5]} 29. Rg3+ {[%clk 0:01:14.9]}
29... Kf7 {[%clk 0:00:02.1]} 30. Rd7+ {[%clk 0:01:14.3]} 30... Ke8 {[%clk
0:00:01.4]} 31. Rd6 {[%clk 0:01:11.4]} 1-0

[Event "Early-Titled-Tuesday-Blitz-December-26-2023"]
[Site "Chess.com"]
[Date "2023.12.26"]
[Round "8"]
[White "prime-morty"]
[Black "PabloZarnicki"]
[Result "0-1"]
[WhiteElo "2529"]
[BlackElo "2653"]
[TimeControl "180+1"]
[EndTime "9:27:51 PST"]
[Termination "PabloZarnicki won by resignation"]

1. c4 {[%clk 0:03:00.9]} 1... Nf6 {[%clk 0:02:58.7]} 2. Nc3 {[%clk 0:02:57.2]}
2... g6 {[%clk 0:02:57.8]} 3. e4 {[%clk 0:02:56.8]} 3... d6 {[%clk 0:02:58.2]}
4. g3 {[%clk 0:02:57.4]} 4... Bg7 {[%clk 0:02:58.5]} 5. Bg2 {[%clk 0:02:58]}
5... O-O {[%clk 0:02:59.3]} 6. Nge2 {[%clk 0:02:58.6]} 6... c5 {[%clk 0:02:57]}
7. a3 {[%clk 0:02:58.7]} 7... Nc6 {[%clk 0:02:57.2]} 8. Rb1 {[%clk 0:02:57.5]}
8... a5 {[%clk 0:02:55.6]} 9. d3 {[%clk 0:02:56.3]} 9... Ne8 {[%clk 0:02:48.6]}
10. h4 {[%clk 0:02:54.6]} 10... h5 {[%clk 0:02:46.1]} 11. Bg5 {[%clk 0:02:52]}
11... f6 {[%clk 0:02:44.6]} 12. Be3 {[%clk 0:02:51.5]} 12... e5 {[%clk
0:02:42.6]} 13. O-O {[%clk 0:02:46.6]} 13... Nc7 {[%clk 0:02:41]} 14. f4 {[%clk
0:02:45.9]} 14... Bg4 {[%clk 0:02:39.3]} 15. f5 {[%clk 0:02:46.3]} 15... Qe8
{[%clk 0:02:24.7]} 16. Qd2 {[%clk 0:02:36.9]} 16... Nd4 {[%clk 0:02:22.2]} 17.
Rbe1 {[%clk 0:02:10.7]} 17... Rb8 {[%clk 0:02:13.1]} 18. Bh6 {[%clk 0:02:05.9]}
18... b5 {[%clk 0:02:05.8]} 19. Bxg7 {[%clk 0:01:58.9]} 19... Kxg7 {[%clk
0:02:05.5]} 20. Nxd4 {[%clk 0:01:29]} 20... cxd4 {[%clk 0:02:02.8]} 21. Nd5
{[%clk 0:01:29.1]} 21... Nxd5 {[%clk 0:02:01.3]} 22. cxd5 {[%clk 0:01:30]} 22...
gxf5 {[%clk 0:01:56.7]} 23. Qxa5 {[%clk 0:01:29.2]} 23... fxe4 {[%clk
0:01:54.6]} 24. Qc7+ {[%clk 0:01:24.6]} 24... Rf7 {[%clk 0:01:49.6]} 25. Qxd6
{[%clk 0:01:24.6]} 25... Rd8 {[%clk 0:01:49.3]} 26. Qb4 {[%clk 0:01:14.4]} 26...
e3 {[%clk 0:01:39.6]} 27. Rc1 {[%clk 0:01:10]} 27... Be2 {[%clk 0:01:35.9]} 28.
Rfe1 {[%clk 0:01:01.2]} 28... Bxd3 {[%clk 0:01:36]} 29. d6 {[%clk 0:01:00.7]}
29... Qe6 {[%clk 0:01:30.7]} 30. Rc6 {[%clk 0:00:50.5]} 30... Rfd7 {[%clk
0:01:24]} 31. Rec1 {[%clk 0:00:45.7]} 31... Rxd6 {[%clk 0:01:22.4]} 32. Rc7+
{[%clk 0:00:43.2]} 32... R8d7 {[%clk 0:01:21.1]} 33. Rxd7+ {[%clk 0:00:36.9]}
33... Rxd7 {[%clk 0:01:21]} 34. Rc6 {[%clk 0:00:36.2]} 34... Qg4 {[%clk
0:01:17.1]} 35. Rc8 {[%clk 0:00:34.7]} 35... Rf7 {[%clk 0:01:11.4]} 36. Qd6
{[%clk 0:00:13.8]} 36... Qxc8 {[%clk 0:01:10.2]} 0-1

[Event "Early-Titled-Tuesday-Blitz-December-26-2023"]
[Site "Chess.com"]
[Date "2023.12.26"]
[Round "8"]
[White "WindWhistler11"]
[Black "TanitoluwaAps116"]
[Result "0-1"]
[WhiteElo "2462"]
[BlackElo "2720"]
[TimeControl "180+1"]
[EndTime "9:27:53 PST"]
[Termination "TanitoluwaAps116 won on time"]

1. c4 {[%clk 0:03:00.9]} 1... e5 {[%clk 0:02:50.8]} 2. Nc3 {[%clk 0:03:00.4]}
2... Nc6 {[%clk 0:02:49.3]} 3. g3 {[%clk 0:02:58.7]} 3... g6 {[%clk 0:02:46.8]}
4. Bg2 {[%clk 0:02:58.8]} 4... Bg7 {[%clk 0:02:46.8]} 5. e3 {[%clk 0:02:59.3]}
5... d6 {[%clk 0:02:46.1]} 6. Nge2 {[%clk 0:02:59.6]} 6... Nf6 {[%clk
0:02:46.2]} 7. b3 {[%clk 0:02:51.2]} 7... O-O {[%clk 0:02:46.2]} 8. Bb2 {[%clk
0:02:51.3]} 8... Be6 {[%clk 0:02:46.1]} 9. f4 {[%clk 0:02:49.1]} 9... d5 {[%clk
0:02:44.1]} 10. Na4 {[%clk 0:02:14.1]} 10... dxc4 {[%clk 0:02:40.7]} 11. Nc5
{[%clk 0:02:14.1]} 11... Bd5 {[%clk 0:02:40.3]} 12. e4 {[%clk 0:02:13.7]} 12...
Be6 {[%clk 0:02:36.8]} 13. Nxe6 {[%clk 0:02:13.5]} 13... fxe6 {[%clk 0:02:36.9]}
14. bxc4 {[%clk 0:02:11.2]} 14... exf4 {[%clk 0:02:36]} 15. Nxf4 {[%clk
0:02:00.2]} 15... Qd6 {[%clk 0:02:05.2]} 16. O-O {[%clk 0:01:31.7]} 16... Rad8
{[%clk 0:01:58.7]} 17. d4 {[%clk 0:01:23.1]} 17... e5 {[%clk 0:01:33]} 18. c5
{[%clk 0:01:08.7]} 18... Qe7 {[%clk 0:01:32.1]} 19. Qb3+ {[%clk 0:00:58.6]}
19... Kh8 {[%clk 0:01:28.4]} 20. Nd5 {[%clk 0:00:37.5]} 20... Nxd5 {[%clk
0:01:27.6]} 21. exd5 {[%clk 0:00:38]} 21... Nxd4 {[%clk 0:01:25.2]} 22. Qc4
{[%clk 0:00:18.1]} 22... b5 {[%clk 0:01:19.6]} 23. cxb6 {[%clk 0:00:13.4]} 23...
axb6 {[%clk 0:01:20.2]} 24. Bxd4 {[%clk 0:00:12]} 24... exd4 {[%clk 0:01:19.8]}
25. Rae1 {[%clk 0:00:12]} 25... Rxf1+ {[%clk 0:01:18.7]} 26. Qxf1 {[%clk
0:00:11.7]} 26... Qc5 {[%clk 0:01:16.5]} 27. Kh1 {[%clk 0:00:10.9]} 27... Qa3
{[%clk 0:01:13]} 28. Qf7 {[%clk 0:00:11]} 28... Qd6 {[%clk 0:01:09.8]} 29. Re6
{[%clk 0:00:10]} 29... Qf8 {[%clk 0:01:09]} 30. Qxc7 {[%clk 0:00:09.2]} 30...
Rc8 {[%clk 0:01:03]} 0-1

[Event "Early-Titled-Tuesday-Blitz-December-26-2023"]
[Site "Chess.com"]
[Date "2023.12.26"]
[Round "8"]
[White "Dewarfd"]
[Black "RamonManon0g"]
[Result "0-1"]
[WhiteElo "2087"]
[BlackElo "2351"]
[TimeControl "180+1"]
[EndTime "9:27:53 PST"]
[Termination "RamonManon0g won on time"]

1. b3 {[%clk 0:02:59.5]} 1... e5 {[%clk 0:02:59.7]} 2. Bb2 {[%clk 0:02:59.2]}
2... d6 {[%clk 0:03:00.3]} 3. e3 {[%clk 0:02:57.8]} 3... Nf6 {[%clk 0:03:00.5]}
4. Nf3 {[%clk 0:02:57.8]} 4... Nc6 {[%clk 0:03:00.8]} 5. Bb5 {[%clk 0:02:53.9]}
5... Bg4 {[%clk 0:03:00.3]} 6. h3 {[%clk 0:02:47]} 6... Bh5 {[%clk 0:03:00.2]}
7. d3 {[%clk 0:02:44.4]} 7... Be7 {[%clk 0:02:59.6]} 8. Nbd2 {[%clk 0:02:44.2]}
8... O-O {[%clk 0:02:59.3]} 9. Bxc6 {[%clk 0:02:44.1]} 9... bxc6 {[%clk
0:02:59.3]} 10. c4 {[%clk 0:02:42.1]} 10... Re8 {[%clk 0:02:52.6]} 11. Qc2
{[%clk 0:02:41.4]} 11... Bf8 {[%clk 0:02:50.3]} 12. e4 {[%clk 0:02:36.4]} 12...
a5 {[%clk 0:02:40.4]} 13. O-O {[%clk 0:02:24.2]} 13... Nd7 {[%clk 0:02:39.6]}
14. d4 {[%clk 0:02:14.2]} 14... exd4 {[%clk 0:02:25.5]} 15. Nxd4 {[%clk
0:02:07.3]} 15... c5 {[%clk 0:02:23.4]} 16. Nf5 {[%clk 0:02:06]} 16... Ne5
{[%clk 0:02:16.9]} 17. f3 {[%clk 0:01:46.2]} 17... Qg5 {[%clk 0:02:10.1]} 18.
Rae1 {[%clk 0:01:15.2]} 18... Ng6 {[%clk 0:02:05.7]} 19. Nb1 {[%clk 0:00:33.6]}
19... Nf4 {[%clk 0:02:02.5]} 20. Bc1 {[%clk 0:00:26.8]} 20... Bg6 {[%clk
0:01:52]} 21. Qd2 {[%clk 0:00:17.8]} 21... Bxf5 {[%clk 0:01:42]} 22. exf5 {[%clk
0:00:17.7]} 22... Rxe1 {[%clk 0:01:33.4]} 23. Rxe1 {[%clk 0:00:18]} 23... Qg3
{[%clk 0:01:33.5]} 24. Re4 {[%clk 0:00:05.3]} 24... Nxh3+ {[%clk 0:01:24.2]} 25.
Kh1 {[%clk 0:00:04.8]} 25... Nf2+ {[%clk 0:01:23.9]} 26. Kg1 {[%clk 0:00:03.8]}
26... Nxe4 {[%clk 0:01:23.9]} 27. fxe4 {[%clk 0:00:04.7]} 27... Re8 {[%clk
0:01:17.6]} 28. Nc3 {[%clk 0:00:03.7]} 28... Be7 {[%clk 0:01:17.5]} 29. Qe3
{[%clk 0:00:01.3]} 29... Qxe3+ {[%clk 0:01:12.2]} 30. Bxe3 {[%clk 0:00:02.2]}
30... Bf6 {[%clk 0:01:12.8]} 31. Nd5 {[%clk 0:00:01.8]} 31... Rxe4 {[%clk
0:01:12.1]} 0-1